fUSD/lending_fUSD_20240920
["ID","MTS","AMOUNT","RATE_DAILY","PERIOD"]
[338625592,1726808100865,180.62,0.00022999,120]
[338625593,1726808106173,500.0,0.00022999,120]
[338625594,1726808106769,527.76426986,0.00022999,120]
[338625595,1726808110699,501.11516589,0.00022999,120]
[338625596,1726808112652,500.0,0.00022999,120]
[338625597,1726808112918,223.84563301,0.00022999,120]
[338625598,1726808113642,157.44,0.0001319,30]
[338625599,1726808120699,500.0,0.00022999,120]
[338625600,1726808126034,500.0,0.00022999,120]
[338625601,1726808126297,500.0,0.00022999,120]
[338625602,1726808126547,500.0,0.00022999,120]
[338625603,1726808126805,500.0,0.00022999,120]
[338625604,1726808127060,500.0,0.00022999,120]
[338625605,1726808127297,500.0,0.00022999,120]
[338625606,1726808127568,500.0,0.00022999,120]
[338625607,1726808127842,500.0,0.00022999,120]
[338625608,1726808128091,500.0,0.00022999,120]
[338625609,1726808128370,180.67,0.00022999,120]
[338625610,1726808129995,500.54477998,0.00022999,120]
[338625611,1726808132784,376.39,0.00012047,2]
[338625612,1726808136807,500.0,0.00022999,120]
[338625613,1726808140634,501.27059483,0.00022999,120]
[338625614,1726808150896,500.37000208,0.00022999,120]
[338625615,1726808162969,501.12972352,0.00022999,120]
[338625616,1726808164414,328.0,0.00012047,2]
[338625617,1726808164574,250.0,0.0001231,2]
[338625618,1726808165745,500.0,0.00022999,120]
[338625619,1726808166030,481.23635065,0.00022999,120]
[338625620,1726808181801,500.28888508,0.00022999,120]
[338625621,1726808197382,500.53055928,0.00022999,120]
[338625622,1726808208047,500.5442414,0.00022999,120]
[338625623,1726808220891,300.42665654,0.00022999,120]
[338625624,1726808222909,500.44612614,0.00022999,120]
[338625625,1726808224390,179.04,0.00010457,2]
[338625626,1726808224426,179.04,0.00012721,2]
[338625627,1726808233651,500.46033781,0.00022999,120]
[338625628,1726808238117,500.0,0.00022999,120]
[338625629,1726808238387,500.0,0.00022999,120]
[338625630,1726808238663,500.0,0.00022999,120]
[338625631,1726808239113,388.94045932,0.00022999,120]
[338625632,1726808240799,500.49931198,0.00022999,120]
[338625633,1726808242850,500.73109139,0.00022999,120]
[338625634,1726808244985,500.0,0.00022999,120]
[338625635,1726808288754,502.1550888,0.00022999,120]
[338625636,1726808296665,495.26572746,0.00022999,120]
[338625637,1726808298647,627.39,0.00022999,120]
[338625638,1726808301040,500.0,0.00022999,120]
[338625639,1726808303084,539.25,0.00022999,120]
[338625640,1726808312343,542.81892592,0.00022999,120]
[338625641,1726808358565,204.614926,0.00012512,2]
[338625642,1726808362979,600.1837792,0.00022999,120]
[338625643,1726808369175,500.0,0.00022999,120]
[338625644,1726808369430,500.0,0.00022999,120]
[338625645,1726808369873,582.46,0.00022999,120]
[338625646,1726808371723,500.0,0.00022999,120]
[338625647,1726808371992,500.0,0.00022999,120]
[338625648,1726808372239,500.0,0.00022999,120]
[338625649,1726808372512,500.0,0.00022999,120]
[338625650,1726808372909,450.94,0.00022999,120]
[338625651,1726808374898,500.0,0.00022999,120]
[338625652,1726808375173,417.36,0.00022999,120]
[338625653,1726808377298,500.0,0.00022999,120]
[338625654,1726808382287,500.0,0.00022999,120]
[338625655,1726808382544,279.93,0.00022999,120]
[338625656,1726808384754,500.0,0.00022999,120]
[338625657,1726808385013,500.0,0.00022999,120]
[338625658,1726808385271,500.0,0.00022999,120]
[338625659,1726808385535,165.91,0.00022999,120]
[338625660,1726808388056,500.0,0.00022999,120]
[338625661,1726808388320,500.0,0.00022999,120]
[338625662,1726808388562,500.0,0.00022999,120]
[338625663,1726808388807,485.36,0.00022999,120]
[338625664,1726808391609,500.0,0.00022999,120]
[338625665,1726808391873,500.0,0.00022999,120]
[338625666,1726808392116,500.0,0.00022999,120]
[338625667,1726808392368,500.0,0.00022999,120]
[338625668,1726808392632,298.77,0.00022999,120]
[338625669,1726808394591,500.0,0.00022999,120]
[338625670,1726808394884,500.0,0.00022999,120]
[338625671,1726808395137,500.0,0.00022999,120]
[338625672,1726808395402,500.0,0.00022999,120]
[338625673,1726808395724,500.0,0.00022999,120]
[338625674,1726808396067,500.0,0.00022999,120]
[338625675,1726808396532,500.0,0.00022999,120]
[338625676,1726808396612,563.83,0.00022999,120]
[338625677,1726808397979,500.0,0.00022999,120]
[338625678,1726808399884,500.0,0.00022999,120]
[338625679,1726808400166,500.0,0.00022999,120]
[338625680,1726808400593,189.34,0.00022999,120]
[338625681,1726808402972,500.0,0.00022999,120]
[338625682,1726808403015,500.0,0.00022999,120]
[338625683,1726808403250,500.0,0.00022999,120]
[338625684,1726808403568,500.0,0.00022999,120]
[338625685,1726808403856,500.0,0.00022999,120]
[338625686,1726808404131,500.0,0.00022999,120]
[338625687,1726808404552,290.86,0.00022999,120]
[338625688,1726808405745,500.0,0.00022999,120]
[338625689,1726808406654,500.0,0.00022999,120]
[338625690,1726808406937,500.0,0.00022999,120]
[338625691,1726808407232,225.92,0.00022999,120]
[338625692,1726808409384,500.0,0.00022999,120]
[338625693,1726808409650,500.0,0.00022999,120]
[338625694,1726808409950,500.0,0.00022999,120]
[338625695,1726808410242,500.0,0.00022999,120]
[338625696,1726808410498,500.0,0.00022999,120]
[338625697,1726808410862,450.54,0.00022999,120]
[338625698,1726808413150,500.0,0.00022999,120]
[338625699,1726808413752,500.0,0.00022999,120]
[338625700,1726808414036,500.0,0.00022999,120]
[338625701,1726808414687,500.0,0.00022999,120]
[338625702,1726808414958,500.0,0.00022999,120]
[338625703,1726808415252,500.0,0.00022999,120]
[338625704,1726808415560,330.53822918,0.00022999,120]
[338625705,1726808426234,500.0,0.00022999,120]
[338625706,1726808426512,500.0,0.00022999,120]
[338625707,1726808426771,500.0,0.00022999,120]
[338625708,1726808427043,500.0,0.00022999,120]
[338625709,1726808427401,500.0,0.00022999,120]
[338625710,1726808427702,500.0,0.00022999,120]
[338625711,1726808427959,500.0,0.00022999,120]
[338625712,1726808428229,500.0,0.00022999,120]
[338625713,1726808428486,500.0,0.00022999,120]
[338625714,1726808428764,631.26,0.00022999,120]
[338625715,1726808431222,500.0,0.00022999,120]
[338625716,1726808431611,500.0,0.00022999,120]
[338625717,1726808431750,500.0,0.00022999,120]
[338625718,1726808432589,500.0,0.00022999,120]
[338625719,1726808432841,500.0,0.00022999,120]
[338625720,1726808433099,500.0,0.00022999,120]
[338625721,1726808433350,500.0,0.00022999,120]
[338625722,1726808433611,500.0,0.00022999,120]
[338625723,1726808433858,180.21,0.00022999,120]
[338625724,1726808436496,500.0,0.00022999,120]
[338625725,1726808436778,569.79,0.00022999,120]
[338625726,1726808446261,500.0,0.00022999,120]
[338625727,1726808456654,500.0,0.00022999,120]
[338625728,1726808456903,500.0,0.00022999,120]
[338625729,1726808457172,155.07,0.00022999,120]
[338625730,1726808461148,500.0,0.00022999,120]
[338625731,1726808463108,500.0,0.00022999,120]
[338625732,1726808463478,500.0,0.00022999,120]
[338625733,1726808466556,597.2,0.00022999,120]
[338625734,1726808468693,500.0,0.00022999,120]
[338625735,1726808471318,500.0,0.00022999,120]
[338625736,1726808474371,288.62,0.00012181,2]
[338625737,1726808476202,500.0,0.00022999,120]
[338625738,1726808476499,508.38,0.00022999,120]
[338625739,1726808478509,500.0,0.00022999,120]
[338625740,1726808478619,500.0,0.00022999,120]
[338625741,1726808479807,622.79,0.00022999,120]
[338625742,1726808480848,500.0,0.00022999,120]
[338625743,1726808481925,500.0,0.00022999,120]
[338625744,1726808482978,500.0,0.00022999,120]
[338625745,1726808484142,500.0,0.00022999,120]
[338625746,1726808485524,500.0,0.00022999,120]
[338625747,1726808485895,362.68,0.00022999,120]
[338625748,1726808488001,500.0,0.00022999,120]
[338625749,1726808491272,500.0,0.00022999,120]
[338625750,1726808491467,500.45638373,0.00022999,120]
[338625751,1726808493849,500.0,0.00022999,120]
[338625752,1726808494387,640.8,0.00022999,120]
[338625753,1726808495053,500.0,0.00022999,120]
[338625754,1726808495295,500.0,0.00022999,120]
[338625755,1726808495369,219.01,0.00022999,120]
[338625756,1726808496678,621.92,0.00022999,120]
[338625757,1726808497524,500.0,0.00022999,120]
[338625758,1726808499146,500.0,0.00022999,120]
[338625759,1726808501335,500.0,0.00022999,120]
[338625760,1726808501626,500.0,0.00022999,120]
[338625761,1726808501930,227.64,0.00022999,120]
[338625762,1726808504379,500.0,0.00022999,120]
[338625763,1726808504427,500.0,0.00022999,120]
[338625764,1726808504776,533.86,0.00022999,120]
[338625765,1726808505366,500.0,0.00022999,120]
[338625766,1726808505652,500.0,0.00022999,120]
[338625767,1726808505966,564.78,0.00022999,120]
[338625768,1726808507190,500.0,0.00022999,120]
[338625769,1726808508029,500.0,0.00022999,120]
[338625770,1726808508401,500.0,0.00022999,120]
[338625771,1726808508666,500.0,0.00022999,120]
[338625772,1726808508936,203.55,0.00022999,120]
[338625773,1726808509418,500.0,0.00022999,120]
[338625774,1726808509461,500.0,0.00022999,120]
[338625775,1726808509726,500.0,0.00022999,120]
[338625776,1726808510033,500.0,0.00022999,120]
[338625777,1726808510310,500.0,0.00022999,120]
[338625778,1726808510583,500.0,0.00022999,120]
[338625779,1726808510838,437.78267742,0.00022999,120]
[338625780,1726808512055,566.58,0.00022999,120]
[338625781,1726808512897,500.0,0.00022999,120]
[338625782,1726808514214,500.0,0.00022999,120]
[338625783,1726808514622,500.0,0.00022999,120]
[338625784,1726808514713,500.0,0.00022999,120]
[338625785,1726808514885,559.26,0.00022999,120]
[338625786,1726808515025,500.0,0.00022999,120]
[338625787,1726808515267,500.0,0.00022999,120]
[338625788,1726808515538,500.0,0.00022999,120]
[338625789,1726808515815,348.48,0.00022999,120]
[338625790,1726808517273,500.0,0.00022999,120]
[338625791,1726808517584,500.0,0.00022999,120]
[338625792,1726808517862,188.58702869,0.00022999,120]
[338625793,1726808518074,500.0,0.00022999,120]
[338625794,1726808518339,297.73753908,0.00022999,120]
[338625795,1726808519640,609.05,0.00022999,120]
[338625796,1726808520165,500.0,0.00022999,120]
[338625797,1726808520466,500.0,0.00022999,120]
[338625798,1726808520530,501.07728057,0.00022999,120]
[338625799,1726808520735,500.0,0.00022999,120]
[338625800,1726808521064,559.11,0.00022999,120]
[338625801,1726808521653,500.0,0.00022999,120]
[338625802,1726808522836,500.0,0.00022999,120]
[338625803,1726808523109,500.0,0.00022999,120]
[338625804,1726808523604,302.48443084,0.00022999,120]
[338625805,1726808523754,500.0,0.00022999,120]
[338625806,1726808526113,500.0,0.00022999,120]
[338625807,1726808528164,500.46117727,0.00022999,120]
[338625808,1726808530176,500.0,0.00022999,120]
[338625809,1726808530499,500.0,0.00022999,120]
[338625810,1726808532412,500.61860162,0.00022999,120]
[338625811,1726808534480,500.0,0.00022999,120]
[338625812,1726808540116,500.0,0.00022999,120]
[338625813,1726808540403,500.0,0.00022999,120]
[338625814,1726808540723,500.0,0.00022999,120]
[338625815,1726808541020,269.76189157,0.00022999,120]
[338625816,1726808541375,500.0,0.00022999,120]
[338625817,1726808543634,513.14,0.00022999,120]
[338625818,1726808545158,500.0,0.00022999,120]
[338625819,1726808552689,500.0,0.00022999,120]
[338625820,1726808553298,190.14,0.00022999,120]
[338625821,1726808556833,500.0,0.00022999,120]
[338625822,1726808563089,500.0,0.00022999,120]
[338625823,1726808563338,330.28742216,0.00022999,120]
[338625824,1726808563851,1093.776147,0.00012512,2]
[338625825,1726808564190,1093.776147,0.00012669,2]
[338625826,1726808567505,499.34168912,0.00022999,120]
[338625827,1726808579757,150.0,0.00022986,120]
[338625828,1726808586267,501.22996122,0.00022999,120]
[338625829,1726808594136,500.9531615,0.00022999,120]
[338625830,1726808599890,500.0,0.00022999,120]
[338625831,1726808600169,303.65227339,0.00022999,120]
[338625832,1726808604283,500.0,0.00022999,120]
[338625833,1726808604524,500.0,0.00022999,120]
[338625834,1726808604782,407.49434019,0.00022999,120]
[338625835,1726808637142,187.28,0.00012047,2]
[338625836,1726808689135,500.62628947,0.00022999,120]
[338625837,1726808693675,442.8069831,0.00022999,120]
[338625838,1726808698952,500.0,0.00022999,120]
[338625839,1726808700996,500.0,0.00022999,120]
[338625840,1726808703563,156.5,0.00012,2]
[338625841,1726808705002,500.0,0.00022999,120]
[338625842,1726808707061,500.0,0.00022999,120]
[338625843,1726808707274,152.08572089,0.00022999,120]
[338625844,1726808713123,500.0,0.00022999,120]
[338625845,1726808714748,150.00000001,0.00011688,2]
[338625846,1726808716795,500.0,0.00022999,120]
[338625847,1726808718882,500.36078534,0.00022999,120]
[338625848,1726808720865,500.0,0.00022999,120]
[338625849,1726808722862,500.0,0.00022999,120]
[338625850,1726808728339,500.0,0.00022999,120]
[338625851,1726808732311,500.0,0.00022999,120]
[338625852,1726808735184,2000.0,0.00023,120]
[338625853,1726808736848,500.0,0.00022999,120]
[338625854,1726808738921,500.0,0.00022999,120]
[338625855,1726808746497,500.0,0.00022999,120]
[338625856,1726808749751,-158.000441,0.00013661,7]
[338625857,1726808749771,-2055.94,0.00013661,7]
[338625858,1726808749792,-2055.94,0.00013661,7]
[338625859,1726808750014,-2055.94,0.00013661,7]
[338625860,1726808750037,-2055.94,0.00013661,7]
[338625861,1726808750068,-1320.33,0.000139,8]
[338625862,1726808755486,737.6,0.00012083,2]
[338625863,1726808767870,250.0,0.00012068,2]
[338625864,1726808797024,161.13,0.00010151,2]
[338625865,1726808797240,161.13,0.00012414,2]
[338625866,1726808826538,510.0,0.00022876,120]
[338625867,1726808837724,-2923.88990509,0.0001499,15]
[338625868,1726808837747,-900.0,0.00015,16]
[338625869,1726808837773,-15060.65930894,0.00015,15]
[338625870,1726808863023,500.0,0.00022999,120]
[338625871,1726808863282,500.0,0.00022999,120]
[338625872,1726808863519,500.0,0.00022999,120]
[338625873,1726808863773,500.0,0.00022999,120]
[338625874,1726808864045,500.0,0.00022999,120]
[338625875,1726808864347,500.0,0.00022999,120]
[338625876,1726808864673,500.0,0.00022999,120]
[338625877,1726808864936,500.0,0.00022999,120]
[338625878,1726808865221,500.0,0.00022999,120]
[338625879,1726808865493,500.0,0.00022999,120]
[338625880,1726808865922,500.0,0.00022999,120]
[338625881,1726808866017,500.0,0.00022999,120]
[338625882,1726808866415,500.0,0.00022999,120]
[338625883,1726808866659,500.0,0.00022999,120]
[338625884,1726808866955,500.0,0.00022999,120]
[338625885,1726808867460,-301.0,0.000149,14]
[338625886,1726808867528,500.0,0.00022999,120]
[338625887,1726808867648,283.14084852,0.00022999,120]
[338625888,1726808885860,-1355.0,0.000143,9]
[338625889,1726808885886,-1385.0,0.0001479,9]
[338625890,1726808885907,-1138.0,0.000148,9]
[338625891,1726808885933,-257.92053283,0.00015,10]
[338625892,1726808885955,-1428.77150846,0.00015,10]
[338625893,1726808912604,-2055.94,0.00013934,7]
[338625894,1726808912627,-2055.94,0.00013934,7]
[338625895,1726808943488,500.0,0.00022999,120]
[338625896,1726808943935,500.0,0.00022999,120]
[338625897,1726808944184,486.96891089,0.00022999,120]
[338625898,1726808958425,500.0,0.00022999,120]
[338625899,1726808958884,500.0,0.00022999,120]
[338625900,1726808958959,515.22,0.00022999,120]
[338625901,1726808983478,554.18566649,0.00022999,120]
[338625910,1726809031515,-415.09721781,0.00012798,2]
[338625911,1726809031528,-308.807424,0.00012798,2]
[338625912,1726809031540,-1181.25035819,0.00012798,2]
[338625913,1726809031549,-1108.85,0.000128,2]
[338625914,1726809031558,-1093.776147,0.00012825,2]
[338625915,1726809031567,-231.887,0.00012847,2]
[338625916,1726809031576,-1262.0,0.0001286,2]
[338625917,1726809031587,-708.964,0.0001286,2]
[338625918,1726809031596,-625.0,0.0001286,2]
[338625919,1726809031605,-448.0,0.0001286,2]
[338625920,1726809031614,-932.0,0.0001286,2]
[338625921,1726809031623,-558.0,0.0001286,2]
[338625922,1726809031632,-150.0,0.00012899,2]
[338625923,1726809031642,-103.28737117,0.000129,2]
[338625924,1726809031653,-240.14672883,0.000129,2]
[338625925,1726809031663,-1751.90538983,0.000129,2]
[338625926,1726809031682,-748.09461017,0.000129,2]
[338625927,1726809031692,-136.99881944,0.000129,2]
[338625928,1726809031703,-331.9629089,0.000129,2]
[338625929,1726809031714,-531.03827166,0.000129,2]
[338625930,1726809031724,-20465.4195,0.000129,2]
[338625931,1726809031733,-12387.0509,0.000129,2]
[338625932,1726809031742,-500.0,0.000129,2]
[338625933,1726809031751,-172.71402781,0.000129,2]
[338625934,1726809031760,-347.62794276,0.000129,2]
[338625935,1726809031770,-150.99,0.000129,2]
[338625936,1726809031779,-2021.2853025,0.000129,2]
[338625937,1726809031788,-233.091813,0.00012938,2]
[338625938,1726809031798,-233.091813,0.00012948,2]
[338625939,1726809031807,-499.99,0.00012948,2]
[338625940,1726809031816,-233.091813,0.00012958,2]
[338625941,1726809031825,-233.091813,0.00012968,2]
[338625943,1726809031834,-500.0,0.00012973,2]
[338625945,1726809031843,-493.15507064,0.00012973,2]
[338625947,1726809031853,-399.96231678,0.00012973,2]
[338625949,1726809031863,-500.0,0.00012973,2]
[338625951,1726809031872,-500.0,0.00012973,2]
[338625953,1726809031882,-1093.776147,0.00012981,2]
[338625955,1726809031891,-152.71,0.0001299,2]
[338625957,1726809031903,-440.616,0.00012995,2]
[338625959,1726809031912,-216.488,0.00012995,2]
[338625961,1726809031927,-500.0,0.00012999,2]
[338625963,1726809031936,-500.0,0.00012999,2]
[338625965,1726809031946,-446.96879775,0.00012999,2]
[338625966,1726809031955,-182435.88539011,0.00013,2]
[338625968,1726809031964,-253793.15009053,0.00013,2]
[338625969,1726809031980,-5328.23777328,0.00013,2]
[338625970,1726809031991,-3006.95450631,0.00013,2]
[338625971,1726809032002,-710.26876103,0.00013,2]
[338625972,1726809032017,-269.0000005,0.00013,2]
[338625973,1726809032029,-818.15190406,0.00013,2]
[338625974,1726809032044,-818.95666546,0.00013,2]
[338625975,1726809032054,-8857.72706137,0.00013,2]
[338625976,1726809032073,-117863.77424447,0.00013,2]
[338625977,1726809032084,-8250.65169538,0.00013,2]
[338625978,1726809032095,-266.95294903,0.00013,2]
[338625979,1726809037525,-1370.23840371,0.00013,2]
[338625980,1726809037536,-319.445,0.00013,2]
[338625981,1726809037586,-2944.34240302,0.00013,2]
[338625982,1726809037598,-9101.3781579,0.00013,2]
[338625983,1726809037609,-8693.51986952,0.00013,2]
[338625984,1726809037619,-1381.24087936,0.00013,2]
[338625985,1726809037631,-565.04121302,0.00013,2]
[338625986,1726809037647,-452.76,0.00013,2]
[338625987,1726809037700,-2395.96216897,0.00013,2]
[338625988,1726809037812,-225750.28477991,0.00013,2]
[338625989,1726809037821,-582705.07018203,0.00013,2]
[338625990,1726809037833,-29814.12843208,0.00013,2]
[338625991,1726809037842,-1340.744,0.00013,2]
[338625992,1726809037851,-1966.81926744,0.00013,2]
[338625993,1726809037869,-7665.13300703,0.00013,2]
[338625994,1726809037880,-31253.03540949,0.00013,2]
[338625995,1726809037892,-473.73331619,0.00013,2]
[338625996,1726809037907,-1292.79352742,0.00013,2]
[338625999,1726809037946,-127382.06183781,0.00013,2]
[338626052,1726809039730,-4955.54966543,0.00013,2]
[338626053,1726809039841,-636.88,0.00013,2]
[338626054,1726809039902,-4439.27591135,0.00013,2]
[338626323,1726809042611,-466.57035113,0.00013,2]
[338626350,1726809042881,-635.21123001,0.00013,2]
[338626352,1726809042893,-423.97074858,0.00013,2]
[338626405,1726809045559,-4221.14887473,0.00013,2]
[338626406,1726809045571,-39786.82373249,0.00013,2]
[338626407,1726809045582,-10453.70827459,0.00013,2]
[338626408,1726809045807,-359.89413236,0.00013,2]
[338626409,1726809045818,-278.13528939,0.00013,2]
[338626410,1726809050185,500.0,0.00022999,120]
[338626411,1726809052368,500.0,0.00022999,120]
[338626412,1726809052587,500.0,0.00022999,120]
[338626413,1726809052844,500.0,0.00022999,120]
[338626414,1726809053124,500.0,0.00022999,120]
[338626415,1726809053450,340.94,0.00022999,120]
[338626416,1726809070129,500.0,0.00022999,120]
[338626417,1726809070393,179.69,0.00022999,120]
[338626418,1726809072819,500.0,0.00022999,120]
[338626419,1726809072904,315.39,0.00022999,120]
[338626420,1726809078919,629.2,0.00022999,120]
[338626421,1726809177208,177.31,0.00012415,2]
[338626422,1726809182669,500.0,0.00011,2]
[338626423,1726809210306,503.20867313,0.00022999,120]
[338626424,1726809212586,500.0,0.00022999,120]
[338626425,1726809240125,500.0,0.00022999,120]
[338626426,1726809247337,172.49,0.00010959,2]
[338626427,1726809257704,796.0,0.00012742,2]
[338626428,1726809260110,500.0,0.00011,2]
[338626429,1726809271579,500.0,0.00011,2]
[338626430,1726809272182,154.1,9.921e-05,2]
[338626431,1726809288883,500.0,0.00012,2]
[338626432,1726809303533,150.0,0.00022986,120]
[338626433,1726809308058,500.0,0.00022999,120]
[338626434,1726809336781,173.48,0.0001047,2]
[338626435,1726809337016,173.48,0.00012734,2]
[338626436,1726809340267,250.0,0.00012388,2]
[338626437,1726809462002,1000.0,0.00012355,2]
[338626438,1726809511619,352.493,0.0001274,2]
[338626439,1726809526557,1050.0,0.00011,2]
[338626441,1726809585698,500.95335309,0.00022999,120]
[338626442,1726809748706,1800.0,0.00022,60]
[338626443,1726809767095,11665.34,0.00012369,2]
[338626444,1726809817037,-185.11540451,0.0001278,2]
[338626445,1726809817058,-997.96,0.000128,2]
[338626446,1726809817079,-1262.0,0.0001288,2]
[338626447,1726809817100,-932.0,0.0001288,2]
[338626448,1726809817120,-558.0,0.0001288,2]
[338626449,1726809817142,-150.0,0.00012899,2]
[338626450,1726809817163,-300.0,0.00012899,2]
[338626451,1726809817183,-1167.0957,0.000129,2]
[338626452,1726809817203,-6480.6968,0.000129,2]
[338626453,1726809817223,-1210.7973,0.000129,2]
[338626454,1726809817243,-174.88666526,0.000129,2]
[338626455,1726809817264,-478.06197736,0.000129,2]
[338626456,1726809817285,-8895.88243907,0.000129,2]
[338626457,1726809817305,-2432.78720902,0.000129,2]
[338626458,1726809817328,-159.85984811,0.000129,2]
[338626459,1726809817348,-563.07767056,0.00012973,2]
[338626460,1726809817368,-500.0,0.00012973,2]
[338626461,1726809817389,-210.07904784,0.00012973,2]
[338626462,1726809817413,-9841.69993827,0.00013,2]
[338626463,1726809845935,150.0,0.00022986,120]
[338626464,1726809848310,334.17,0.00012452,2]
[338626465,1726809871724,250.0,0.00012047,2]
[338626466,1726809902079,159.08,0.00010959,2]
[338626467,1726809925664,184.0,0.00010129,2]
[338626468,1726809926068,184.0,0.00012393,2]
[338626470,1726809955250,19220.0945093,6.94e-05,2]
[338626471,1726809994920,218.0,0.00022,120]
[338626472,1726810008183,510.0,0.00022876,120]
[338626473,1726810031882,200.0,0.00012047,2]
[338626478,1726810051599,233.091813,0.00012978,120]
[338626494,1726810084387,2937.69610377,0.00022,60]
[338626513,1726810231749,-640.41828,0.000128,2]
[338626518,1726810231866,-257.75172,0.000128,2]
[338626519,1726810231876,-513.209,0.0001288,2]
[338626520,1726810231885,-160.78836512,0.000129,2]
[338626521,1726810231896,-233.091813,0.00012948,2]
[338626522,1726810231906,-233.091813,0.00012958,2]
[338626523,1726810231915,-233.091813,0.00012968,2]
[338626524,1726810231925,-500.0,0.00012973,2]
[338626525,1726810231935,-233.091813,0.00012978,2]
[338626526,1726810231944,-300.0,0.00012979,2]
[338626527,1726810231954,-359.11823305,0.0001298,2]
[338626528,1726810231966,-640.88176695,0.0001298,2]
[338626529,1726810231975,-1000.0,0.0001298,2]
[338626530,1726810231985,-1000.0,0.0001298,2]
[338626531,1726810231994,-1005.0,0.0001298,2]
[338626532,1726810232004,-577.35313896,0.0001298,3]
[338626533,1726810232020,-295.4294,0.0001298,3]
[338626534,1726810232051,-127.21746104,0.0001298,3]
[338626535,1726810232060,-905.87379257,0.0001298,2]
[338626536,1726810232113,-94.12620743,0.0001298,2]
[338626537,1726810232122,-750.5097604,0.0001298,2]
[338626538,1726810232135,-251.4902396,0.0001298,2]
[338626539,1726810232144,-493.82344806,0.0001298,2]
[338626547,1726810237708,-558.0,0.0001288,2]
[338626548,1726810237720,-442.0,0.0001298,2]
[338626549,1726810237877,-65.17655194,0.0001298,2]
[338626550,1726810237887,-2041.64867058,0.00012998,2]
[338626551,1726810237897,-29.70237951,0.00012999,2]
[338626552,1726810237908,-120.29762049,0.00012999,2]
[338626553,1726810237918,-58345.96065815,0.00013,2]
[338626554,1726810237929,-2008.63848988,0.00013,2]
[338626555,1726810237990,-10279.0,0.00013,2]
[338626556,1726810238049,-1000.0,0.00013,2]
[338626562,1726810239994,-12322.06075338,0.00013,2]
[338626563,1726810240053,-299.25486665,0.00013,2]
[338626819,1726810242803,-279.92356222,0.0001288,2]
[338626826,1726810242861,-652.07643778,0.0001288,2]
[338626828,1726810242871,-4644.5299403,0.00013,2]
[338626830,1726810242882,-32666.81176021,0.00013,2]
[338626832,1726810242892,-211634.98185671,0.00013,2]